[Event "Sunway Sitges Chess Festival"]
[Date "2024.12.21"]
[White "Wang, Lachlan"]
[Black "Yang, Qindong"]
[WhiteElo "1848"]
[BlackElo "2258"]
[Round "9.36"]
[Result "1/2-1/2"]
[TimeControl "40/5400+30:1800+30"]

1. e4 {[%clk 1:30:58]} 1... c5 {[%clk 1:27:22]} 2. Nf3 {[%clk 1:31:24]} 2... d6
{[%clk 1:27:34]} 3. d4 {[%clk 1:31:49]} 3... cxd4 {[%clk 1:28:02]} 4. Nxd4
{[%clk 1:32:14]} 4... Nf6 {[%clk 1:28:18]} 5. Nc3 {[%clk 1:32:40]} 5... a6
{[%clk 1:28:37]} 6. Rg1 {[%clk 1:32:58]} 6... b5 {[%clk 1:27:56]} 7. g4 {[%clk
1:33:22]} 7... Bb7 {[%clk 1:28:04]} 8. g5 {[%clk 1:33:48]} 8... Nxe4 {[%clk
1:27:24]} 9. Nxe4 {[%clk 1:34:16]} 9... Bxe4 {[%clk 1:27:50]} 10. a4 {[%clk
1:34:41]} 10... b4 {[%clk 1:27:17]} 11. Qe2 {[%clk 1:34:01]} 11... d5 {[%clk
1:25:05]} 12. f3 {[%clk 1:34:17]} 12... Bg6 {[%clk 1:25:12]} 13. f4 {[%clk
1:34:41]} 13... Be4 {[%clk 1:19:52]} 14. Be3 {[%clk 1:33:08]} 14... e6 {[%clk
1:08:24]} 15. Bg2 {[%clk 1:32:53]} 15... Qc7 {[%clk 0:58:30]} 16. Bxe4 {[%clk
0:33:11]} 16... dxe4 {[%clk 0:58:30]} 17. Qg2 {[%clk 0:33:11]} 17... Nd7 {[%clk
0:58:30]} 18. Qxe4 {[%clk 0:33:11]} 18... Rc8 {[%clk 0:58:30]} 19. h4 {[%clk
0:33:11]} 19... Nc5 {[%clk 0:58:30]} 20. Qg2 {[%clk 0:33:11]} 20... Qb7 {[%clk
0:58:30]} 21. Qxb7 {[%clk 0:33:11]} 21... Nxb7 {[%clk 0:58:30]} 22. Rg2 {[%clk
0:33:11]} 22... Nc5 {[%clk 0:58:30]} 23. Ke2 {[%clk 0:33:11]} 23... g6 {[%clk
0:58:30]} 24. h5 {[%clk 0:33:11]} 24... Bd6 {[%clk 0:58:30]} 25. Kf3 {[%clk
0:33:11]} 25... Ke7 {[%clk 0:58:30]} 26. Nb3 {[%clk 0:33:11]} 26... Nxb3 {[%clk
0:58:30]} 27. cxb3 {[%clk 0:33:11]} 27... Bc5 {[%clk 0:58:30]} 28. Rd1 {[%clk
0:33:11]} 28... Bxe3 {[%clk 0:58:30]} 29. Kxe3 {[%clk 0:33:11]} 29... gxh5
{[%clk 0:58:30]} 30. Rh1 {[%clk 0:33:11]} 30... h6 {[%clk 0:58:30]} 31. g6
{[%clk 0:33:11]} 31... Rcg8 {[%clk 0:58:30]} 32. g7 {[%clk 0:33:11]} 32... Rh7
{[%clk 0:58:30]} 33. Rxh5 {[%clk 0:33:11]} 33... Rhxg7 {[%clk 0:58:30]} 34. Rxg7
{[%clk 0:33:11]} 34... Rxg7 {[%clk 0:58:30]} 35. Kf3 {[%clk 0:33:11]} 35... Rg1
{[%clk 0:58:30]} 36. Rxh6 {[%clk 0:33:11]} 36... Rf1+ {[%clk 0:58:30]} 37. Ke3
{[%clk 0:33:11]} 37... Re1+ {[%clk 0:58:30]} 38. Kf3 {[%clk 0:33:11]} 38... Rf1+
{[%clk 0:58:30]} 39. Ke3 {[%clk 0:33:11]} 39... Re1+ {[%clk 0:58:30]} 40. Kf3
{[%clk 0:33:11]} 40... Rb1 {[%clk 0:58:30]} 41. Rh2 {[%clk 0:33:11]} 41... Kf6
{[%clk 0:58:30]} 42. Re2 {[%clk 0:33:11]} 42... Rf1+ {[%clk 0:58:30]} 43. Kg4
{[%clk 0:33:11]} 43... Rd1 {[%clk 0:58:30]} 44. Re4 {[%clk 0:33:11]} 44... a5
{[%clk 0:58:30]} 45. Re5 {[%clk 0:33:11]} 45... Rd5 {[%clk 0:58:30]} 46. Re3
{[%clk 0:33:11]} 46... Kg6 {[%clk 0:58:30]} 47. Re2 {[%clk 0:33:11]} 47... Rd3
{[%clk 0:58:30]} 48. Re5 {[%clk 0:33:11]} 48... Rxb3 {[%clk 0:58:30]} 49. Rg5+
{[%clk 0:33:11]} 49... Kh6 {[%clk 0:58:30]} 50. Rh5+ {[%clk 0:33:11]} 50... Kg6
{[%clk 0:58:30]} 51. Rg5+ {[%clk 0:33:11]} 51... Kf6 {[%clk 0:58:30]} 52. Rxa5
{[%clk 0:33:11]} 52... Rxb2 {[%clk 0:58:30]} 53. Rb5 {[%clk 0:33:11]} 53... Kg6
{[%clk 0:58:30]} 54. Rg5+ {[%clk 0:33:11]} 54... Kh6 {[%clk 0:58:30]} 55. Rh5+
{[%clk 0:33:11]} 55... Kg7 {[%clk 0:58:30]} 56. Rg5+ {[%clk 0:33:11]} 56... Kf6
{[%clk 0:58:30]} 57. Rb5 {[%clk 0:33:11]} 57... b3 {[%clk 0:58:30]} 58. a5
{[%clk 0:33:11]} 58... Kg6 {[%clk 0:58:30]} 59. Rg5+ {[%clk 0:33:11]} 59... Kh6
{[%clk 0:58:30]} 60. Rh5+ {[%clk 0:33:11]} 60... Kg6 {[%clk 0:58:30]} 61. Rg5+
{[%clk 0:33:11]} 61... Kf6 {[%clk 0:58:30]} 62. Rb5 {[%clk 0:33:11]} 62... Rg2+
{[%clk 0:58:30]} 63. Kf3 {[%clk 0:33:11]} 63... Ra2 {[%clk 0:58:30]} 64. Rxb3
{[%clk 0:33:11]} 64... Rxa5 {[%clk 0:58:30]} 65. Kg4 {[%clk 0:33:11]} 65... Ra4
{[%clk 0:58:30]} 66. Rb5 {[%clk 0:33:11]} 66... Re4 {[%clk 0:58:30]} 67. Kf3
{[%clk 0:33:11]} 67... Rd4 {[%clk 0:58:30]} 68. Kg4 {[%clk 0:33:11]} 68... Rd5
{[%clk 0:58:30]} 69. Rb3 {[%clk 0:33:11]} 69... Kg6 {[%clk 0:58:30]} 70. Re3
{[%clk 0:33:11]} 70... Ra5 {[%clk 0:58:30]} 71. Rb3 {[%clk 0:33:11]} 71... Ra4
{[%clk 0:58:30]} 72. Re3 {[%clk 0:33:11]} 72... Rb4 {[%clk 0:58:30]} 73. Kg3
{[%clk 0:33:11]} 73... Ra4 {[%clk 0:58:30]} 74. Kg4 {[%clk 0:33:11]} 74... Ra6
{[%clk 0:58:30]} 75. Re5 {[%clk 0:33:11]} 75... f5+ {[%clk 0:58:30]} 76. Kh4
{[%clk 0:33:11]} 76... Kf6 {[%clk 0:58:30]} 77. Re3 {[%clk 0:33:11]} 77... Ra1
{[%clk 0:58:30]} 78. Kg3 {[%clk 0:33:11]} 78... Rb1 {[%clk 0:58:30]} 79. Kf3
{[%clk 0:33:11]} 79... Ke7 {[%clk 0:58:30]} 80. Kg3 {[%clk 0:33:11]} 80... Rd1
{[%clk 0:58:30]} 81. Kf3 {[%clk 0:33:11]} 81... Rd2 {[%clk 0:58:30]} 82. Ra3
{[%clk 0:33:11]} 82... Rd1 {[%clk 0:58:30]} 83. Re3 {[%clk 0:33:11]} 83... Rd4
{[%clk 0:58:30]} 84. Ra3 {[%clk 0:33:11]} 84... Rc4 {[%clk 0:58:30]} 85. Rd3
{[%clk 0:33:11]} 85... Rc5 {[%clk 0:58:30]} 86. Ra3 {[%clk 0:33:11]} 86... Kd6
{[%clk 0:58:30]} 87. Rd3+ {[%clk 0:33:11]} 87... Rd5 {[%clk 0:58:30]} 88. Re3
{[%clk 0:33:11]} 88... Rd4 {[%clk 0:58:30]} 89. Ra3 {[%clk 0:33:11]} 89... Kd5
{[%clk 0:58:30]} 90. Ra5+ {[%clk 0:33:11]} 90... Kc4 {[%clk 0:58:30]} 91. Re5
{[%clk 0:33:11]} 91... Rd3+ {[%clk 0:58:30]} 92. Ke2 {[%clk 0:33:11]} 92... Rd6
{[%clk 0:58:30]} 93. Kf3 {[%clk 0:33:11]} 93... Kd4 {[%clk 0:58:30]} 94. Re3
{[%clk 0:33:11]} 94... Rc6 {[%clk 0:58:30]} 95. Re5 {[%clk 0:33:11]} 95... Ra6
{[%clk 0:58:30]} 96. Re3 {[%clk 0:33:11]} 96... Rb6 {[%clk 0:58:30]} 97. Re5
{[%clk 0:33:11]} 97... Rc6 {[%clk 0:58:30]} 98. Kf2 {[%clk 0:33:11]} 98... Rb6
{[%clk 0:58:30]} 99. Kf3 {[%clk 0:33:11]} 99... Kd3 {[%clk 0:58:30]} 100. Re3+
{[%clk 0:33:11]} 100... Kd2 {[%clk 0:58:30]} 101. Re2+ {[%clk 0:33:11]} 101...
Kd1 {[%clk 0:58:30]} 102. Re5 {[%clk 0:33:11]} 102... Rc6 {[%clk 0:58:30]} 103.
Re3 {[%clk 0:33:11]} 103... Kd2 {[%clk 0:58:30]} 104. Re2+ {[%clk 0:33:11]}
104... Kd3 {[%clk 0:58:30]} 105. Re3+ {[%clk 0:33:11]} 105... Kd4 {[%clk
0:58:30]} 106. Re5 {[%clk 0:33:11]} 106... Rb6 {[%clk 0:58:30]} 107. Kf2 {[%clk
0:33:11]} 1/2-1/2

[Variant "Standard"]
[Site "Europe Echecs"]

[Event "Sunway Sitges Chess Festival"]
[Date "2024.12.21"]
[White "Chia, Yu Zhe Ashton"]
[Black "Janiashvili, Mariami"]
[WhiteElo "2252"]
[BlackElo "2017"]
[Round "9.37"]
[Result "1-0"]
[TimeControl "40/5400+30:1800+30"]

1. e4 {[%clk 1:30:29]} 1... d5 {[%clk 1:27:57]} 2. Nc3 {[%clk 1:30:31]} 2...
dxe4 {[%clk 1:25:50]} 3. Nxe4 {[%clk 1:30:53]} 3... Bf5 {[%clk 1:25:51]} 4. Ng3
{[%clk 1:30:59]} 4... Bg6 {[%clk 1:26:19]} 5. h4 {[%clk 1:30:53]} 5... h6 {[%clk
1:26:28]} 6. Nf3 {[%clk 1:31:10]} 6... Nf6 {[%clk 1:20:58]} 7. Ne5 {[%clk
1:29:08]} 7... Bh7 {[%clk 1:20:27]} 8. Bc4 {[%clk 1:29:30]} 8... e6 {[%clk
1:20:42]} 9. Qe2 {[%clk 1:29:53]} 9... Qe7 {[%clk 1:09:29]} 10. d4 {[%clk
1:29:39]} 10... Nbd7 {[%clk 1:09:08]} 11. Bf4 {[%clk 1:25:52]} 11... Nd5 {[%clk
1:00:59]} 12. Bd2 {[%clk 1:24:13]} 12... Nxe5 {[%clk 1:00:59]} 13. dxe5 {[%clk
1:24:13]} 13... O-O-O {[%clk 1:00:59]} 14. O-O-O {[%clk 1:24:13]} 14... Qc5
{[%clk 1:00:59]} 15. Ne4 {[%clk 1:24:13]} 15... Qc6 {[%clk 1:00:59]} 16. Bb3
{[%clk 1:24:13]} 16... Bb4 {[%clk 1:00:59]} 17. c3 {[%clk 1:24:13]} 17... Be7
{[%clk 1:00:59]} 18. Bc2 {[%clk 1:24:13]} 18... Rd7 {[%clk 1:00:59]} 19. c4
{[%clk 1:24:13]} 19... Nb6 {[%clk 1:00:59]} 20. b3 {[%clk 1:24:13]} 20... Ba3+
{[%clk 1:00:59]} 21. Kb1 {[%clk 1:24:13]} 21... Rhd8 {[%clk 1:00:59]} 22. f3
{[%clk 1:24:13]} 22... Bxe4 {[%clk 1:00:59]} 23. Bxe4 {[%clk 1:24:13]} 23... Qc5
{[%clk 1:00:59]} 24. Bc2 {[%clk 1:24:13]} 24... Nxc4 {[%clk 1:00:59]} 25. Bf4
{[%clk 1:24:13]} 25... Rxd1+ {[%clk 1:00:59]} 26. Rxd1 {[%clk 1:24:13]} 26...
Rxd1+ {[%clk 1:00:59]} 27. Bxd1 {[%clk 1:24:13]} 27... Nb6 {[%clk 1:00:59]} 28.
Qc2 {[%clk 1:24:13]} 28... Nd5 {[%clk 1:00:59]} 29. Qxc5 {[%clk 1:24:13]} 29...
Bxc5 {[%clk 1:00:59]} 30. Bd2 {[%clk 1:24:13]} 30... Bf2 {[%clk 1:00:59]} 31. h5
{[%clk 1:24:13]} 31... Bg3 {[%clk 1:00:59]} 32. Kc2 {[%clk 1:24:13]} 32... Bxe5
{[%clk 1:00:59]} 33. Kd3 {[%clk 1:24:13]} 33... Kd7 {[%clk 1:00:59]} 34. g4
{[%clk 1:24:13]} 34... Bf4 {[%clk 1:00:59]} 35. Be1 {[%clk 1:24:13]} 35... f5
{[%clk 1:00:59]} 36. b4 {[%clk 1:24:13]} 36... Kd6 {[%clk 1:00:59]} 37. Bb3
{[%clk 1:24:13]} 37... Ke5 {[%clk 1:00:59]} 38. b5 {[%clk 1:24:13]} 38... Kd6
{[%clk 1:00:59]} 39. Bf2 {[%clk 1:24:13]} 39... a6 {[%clk 1:00:59]} 40. bxa6
{[%clk 1:24:13]} 40... bxa6 {[%clk 1:00:59]} 41. Bc4 {[%clk 1:24:13]} 41... fxg4
{[%clk 1:00:59]} 42. fxg4 {[%clk 1:24:13]} 42... Nf6 {[%clk 1:00:59]} 43. Bxa6
{[%clk 1:24:13]} 43... Nxg4 {[%clk 1:00:59]} 44. Bg1 {[%clk 1:24:13]} 44... Bh2
{[%clk 1:00:59]} 45. Ba7 {[%clk 1:24:13]} 45... Nf6 {[%clk 1:00:59]} 46. a4
{[%clk 1:24:13]} 46... Bg3 {[%clk 1:00:59]} 47. Bb7 {[%clk 1:24:13]} 47... Be1
{[%clk 1:00:59]} 48. Bf3 {[%clk 1:24:13]} 48... e5 {[%clk 1:00:59]} 49. Kc4
{[%clk 1:24:13]} 49... e4 {[%clk 1:00:59]} 50. Be2 {[%clk 1:24:13]} 50... Ke5
{[%clk 1:00:59]} 51. Kb5 {[%clk 1:24:13]} 51... Nd5 {[%clk 1:00:59]} 52. Kc4
{[%clk 1:24:13]} 52... Nf4 {[%clk 1:00:59]} 53. Bg4 {[%clk 1:24:13]} 53... Kf6
{[%clk 1:00:59]} 54. Bb8 {[%clk 1:24:13]} 54... Kg5 {[%clk 1:00:59]} 55. Bd1
{[%clk 1:24:13]} 55... Nxh5 {[%clk 1:00:59]} 56. Bxc7 {[%clk 1:24:13]} 56... Nf4
{[%clk 1:00:59]} 57. a5 {[%clk 1:24:13]} 57... Bxa5 {[%clk 1:00:59]} 58. Bxa5
{[%clk 1:24:13]} 58... h5 {[%clk 1:00:59]} 59. Kd4 {[%clk 1:24:13]} 59... Kf5
{[%clk 1:00:59]} 60. Ba4 {[%clk 1:24:13]} 60... g5 {[%clk 1:00:59]} 61. Bd7+
{[%clk 1:24:13]} 61... Kf6 {[%clk 1:00:59]} 62. Kxe4 {[%clk 1:24:13]} 62... Ne6
{[%clk 1:00:59]} 63. Bc3+ {[%clk 1:24:13]} 63... Ke7 {[%clk 1:00:59]} 64. Bc6
{[%clk 1:24:13]} 64... g4 {[%clk 1:00:59]} 65. Kf5 {[%clk 1:24:13]} 65... Kd6
{[%clk 1:00:59]} 66. Be8 {[%clk 1:24:13]} 66... g3 {[%clk 1:00:59]} 67. Be5+
{[%clk 1:24:13]} 67... Ke7 {[%clk 1:00:59]} 68. Bc6 {[%clk 1:24:13]} 68... h4
{[%clk 1:00:59]} 69. Kg4 {[%clk 1:24:13]} 69... Nd8 {[%clk 1:00:59]} 70. Bd5
{[%clk 1:24:13]} 70... Nf7 {[%clk 1:00:59]} 71. Bf4 {[%clk 1:24:13]} 71... Nd6
{[%clk 1:00:59]} 72. Bg5+ {[%clk 1:24:13]} 72... Kd7 {[%clk 1:00:59]} 73. Bxh4
{[%clk 1:24:13]} 73... Nb5 {[%clk 1:00:59]} 74. Bxg3 {[%clk 1:24:13]} 74... Nc7
{[%clk 1:00:59]} 75. Bc4 {[%clk 1:24:13]} 75... Kc6 {[%clk 1:00:59]} 76. Kf5
{[%clk 1:24:13]} 76... Kc5 {[%clk 1:00:59]} 77. Be2 {[%clk 1:24:13]} 77... Nd5
{[%clk 1:00:59]} 78. Ke5 {[%clk 1:24:13]} 78... Nb4 {[%clk 1:00:59]} 79. Bf2+
{[%clk 1:24:13]} 79... Kc6 {[%clk 1:00:59]} 80. Be1 {[%clk 1:24:13]} 80... Kc5
{[%clk 1:00:59]} 81. Bf2+ {[%clk 1:24:13]} 81... Kc6 {[%clk 1:00:59]} 82. Kd4
{[%clk 1:24:13]} 82... Kd6 {[%clk 1:00:59]} 83. Bg3+ {[%clk 1:24:13]} 83... Kc6
{[%clk 1:00:59]} 84. Kc4 {[%clk 1:24:13]} 84... Na6 {[%clk 1:00:59]} 85. Bf3+
{[%clk 1:24:13]} 85... Kb6 {[%clk 1:00:59]} 86. Bf2+ {[%clk 1:24:13]} 86... Kc7
{[%clk 1:00:59]} 87. Kb5 {[%clk 1:24:13]} 87... Nb8 {[%clk 1:00:59]} 88. Bg3+
{[%clk 1:24:13]} 88... Kc8 {[%clk 1:00:59]} 89. Bg4+ {[%clk 1:24:13]} 89... Kb7
{[%clk 1:00:59]} 90. Bf5 {[%clk 1:24:13]} 90... Ka7 {[%clk 1:00:59]} 91. Bc8
{[%clk 1:24:13]} 91... Ka8 {[%clk 1:00:59]} 92. Bf2 {[%clk 1:24:13]} 1-0

[Variant "Standard"]
[Site "Europe Echecs"]

[Event "Sunway Sitges Chess Festival"]
[Date "2024.12.21"]
[White "Donate Villalba, Juan Francisco"]
[Black "Patzelt, Nikolaus"]
[WhiteElo "1997"]
[BlackElo "2169"]
[Round "9.38"]
[Result "1-0"]
[TimeControl "40/5400+30:1800+30"]

1. e4 {[%clk 1:30:57]} 1... c5 {[%clk 1:30:50]} 2. Nc3 {[%clk 1:31:22]} 2... a6
{[%clk 1:31:07]} 3. g3 {[%clk 1:31:47]} 3... b5 {[%clk 1:31:31]} 4. Bg2 {[%clk
1:32:12]} 4... Bb7 {[%clk 1:31:55]} 5. d3 {[%clk 1:32:37]} 5... e6 {[%clk
1:32:11]} 6. Nh3 {[%clk 1:31:39]} 6... Qc7 {[%clk 1:31:49]} 7. O-O {[%clk
1:31:48]} 7... Be7 {[%clk 1:31:57]} 8. Qg4 {[%clk 1:21:00]} 8... h5 {[%clk
1:27:35]} 9. Qd1 {[%clk 1:18:00]} 9... Nc6 {[%clk 1:26:35]} 10. f4 {[%clk
1:12:31]} 10... Nf6 {[%clk 1:23:19]} 11. Ng5 {[%clk 1:11:54]} 11... c4 {[%clk
1:03:43]} 12. Kh1 {[%clk 0:58:31]} 12... Qb6 {[%clk 0:52:11]} 13. Nf3 {[%clk
0:32:24]} 13... cxd3 {[%clk 0:33:49]} 14. cxd3 {[%clk 0:32:40]} 14... Bc5 {[%clk
0:32:28]} 15. e5 {[%clk 0:30:00]} 15... Ng4 {[%clk 0:32:24]} 16. Ne4 {[%clk
0:30:18]} 16... Nf2+ {[%clk 0:30:19]} 17. Rxf2 {[%clk 0:26:34]} 17... Bxf2
{[%clk 0:30:37]} 18. d4 {[%clk 0:26:02]} 18... h4 {[%clk 0:13:17]} 19. Nxf2
{[%clk 0:23:04]} 19... hxg3 {[%clk 0:12:31]} 20. Ne4 {[%clk 0:22:23]} 20... gxh2
{[%clk 0:08:12]} 21. Nd6+ {[%clk 0:22:30]} 21... Kf8 {[%clk 0:08:41]} 22. Be3
{[%clk 0:20:16]} 22... Ne7 {[%clk 0:07:59]} 23. Nxb7 {[%clk 0:18:32]} 23... Qxb7
{[%clk 0:07:38]} 24. Qd3 {[%clk 0:17:29]} 24... Rc8 {[%clk 0:06:18]} 25. Ng5
{[%clk 0:14:51]} 25... Qc7 {[%clk 0:06:00]} 26. Bd2 {[%clk 0:12:18]} 26... Nf5
{[%clk 0:05:01]} 27. Bb4+ {[%clk 0:10:10]} 27... Kg8 {[%clk 0:04:21]} 28. Bc5
{[%clk 0:10:29]} 28... f6 {[%clk 0:02:48]} 29. Ne4 {[%clk 0:07:05]} 29... fxe5
{[%clk 0:02:43]} 30. fxe5 {[%clk 0:07:25]} 30... Qd8 {[%clk 0:02:47]} 31. Ng3
{[%clk 0:05:31]} 31... Nh4 {[%clk 0:01:59]} 32. Be4 {[%clk 0:05:14]} 32... Qg5
{[%clk 0:02:03]} 33. Rf1 {[%clk 0:05:18]} 33... Rh6 {[%clk 0:01:32]} 34. b4
{[%clk 0:04:55]} 34... Ng6 {[%clk 0:01:25]} 35. Qf3 {[%clk 0:05:04]} 35... Kh8
{[%clk 0:00:45]} 36. Bb7 {[%clk 0:03:00]} 36... Rb8 {[%clk 0:00:45]} 37. Ne4
{[%clk 0:02:26]} 37... Qh4 {[%clk 0:00:39]} 38. Nd6 {[%clk 0:02:33]} 38... Rh5
{[%clk 0:00:48]} 39. Be4 {[%clk 0:02:43]} 39... Rh6 {[%clk 0:00:32]} 40. Nf7+
{[%clk 0:33:03]} 40... Kg8 {[%clk 0:31:00]} 41. Nxh6+ {[%clk 0:33:16]} 41...
Qxh6 {[%clk 0:31:17]} 42. Qf7+ {[%clk 0:33:25]} 42... Kh7 {[%clk 0:31:47]} 43.
Qxg6+ {[%clk 0:32:29]} 43... Qxg6 {[%clk 0:32:15]} 44. Bxg6+ {[%clk 0:32:51]}
44... Kxg6 {[%clk 0:32:42]} 45. Kxh2 {[%clk 0:33:08]} 45... Rh8+ {[%clk
0:33:07]} 46. Kg3 {[%clk 0:33:33]} 46... Rh5 {[%clk 0:33:28]} 47. Be7 {[%clk
0:33:40]} 47... Rh8 {[%clk 0:33:16]} 48. Rc1 {[%clk 0:33:48]} 48... Re8 {[%clk
0:33:13]} 49. Bh4 {[%clk 0:33:54]} 49... Kf5 {[%clk 0:33:34]} 50. Kf3 {[%clk
0:33:36]} 50... g5 {[%clk 0:33:54]} 51. Bg3 {[%clk 0:33:48]} 51... g4+ {[%clk
0:34:10]} 52. Ke3 {[%clk 0:34:11]} 52... a5 {[%clk 0:33:35]} 53. bxa5 {[%clk
0:34:16]} 53... Ra8 {[%clk 0:34:01]} 54. Be1 {[%clk 0:34:40]} 54... Rh8 {[%clk
0:34:27]} 55. Bg3 {[%clk 0:34:00]} 55... Ra8 {[%clk 0:34:51]} 56. Rf1+ {[%clk
0:34:26]} 56... Kg5 {[%clk 0:35:10]} 57. Be1 {[%clk 0:34:18]} 57... Rh8 {[%clk
0:35:25]} 58. Rg1 {[%clk 0:33:40]} 58... Rh2 {[%clk 0:35:40]} 59. Bf2 {[%clk
0:33:54]} 59... Kf5 {[%clk 0:35:18]} 60. Rf1 {[%clk 0:29:59]} 60... Kg5 {[%clk
0:35:23]} 61. Ke4 {[%clk 0:30:10]} 61... Rh3 {[%clk 0:34:58]} 62. Be3+ {[%clk
0:30:28]} 62... Kh4 {[%clk 0:35:13]} 63. a6 {[%clk 0:30:41]} 63... Kg3 {[%clk
0:35:03]} 64. Rf8 {[%clk 0:28:43]} 1-0

[Variant "Standard"]
[Site "Europe Echecs"]

[Event "Sunway Sitges Chess Festival"]
[Date "2024.12.21"]
[White "Comellas Blanchart, Jordi"]
[Black "Schmitt, Carsten"]
[WhiteElo "2080"]
[BlackElo "1976"]
[Round "9.39"]
[Result "1-0"]
[TimeControl "40/5400+30:1800+30"]

1. d4 {[%clk 1:30:56]} 1... Nf6 {[%clk 1:30:56]} 2. c4 {[%clk 1:31:19]} 2... e6
{[%clk 1:31:22]} 3. g3 {[%clk 1:31:35]} 3... Bb4+ {[%clk 1:31:46]} 4. Nd2 {[%clk
1:31:54]} 4... O-O {[%clk 1:32:06]} 5. Bg2 {[%clk 1:32:03]} 5... d5 {[%clk
1:32:15]} 6. Nf3 {[%clk 1:32:09]} 6... b6 {[%clk 1:30:22]} 7. O-O {[%clk
1:31:43]} 7... Bb7 {[%clk 1:30:42]} 8. cxd5 {[%clk 1:31:06]} 8... exd5 {[%clk
1:30:56]} 9. a3 {[%clk 1:30:56]} 9... Bd6 {[%clk 1:30:44]} 10. b4 {[%clk
1:30:36]} 10... a5 {[%clk 1:25:48]} 11. b5 {[%clk 1:30:52]} 11... c6 {[%clk
1:26:10]} 12. Qa4 {[%clk 1:28:45]} 12... cxb5 {[%clk 1:23:51]} 13. Qxb5 {[%clk
1:29:07]} 13... Ba6 {[%clk 1:24:01]} 14. Qb2 {[%clk 1:29:29]} 14... Nbd7 {[%clk
1:22:46]} 15. Re1 {[%clk 1:24:21]} 15... Re8 {[%clk 1:07:09]} 16. Nf1 {[%clk
1:22:46]} 16... h6 {[%clk 0:43:58]} 17. Ne3 {[%clk 1:20:05]} 17... b5 {[%clk
0:25:18]} 18. Bd2 {[%clk 1:14:38]} 18... Rb8 {[%clk 0:11:10]} 19. Nh4 {[%clk
1:10:36]} 19... b4 {[%clk 0:09:09]} 20. axb4 {[%clk 1:09:26]} 20... Bxb4 {[%clk
0:09:30]} 21. Bxb4 {[%clk 1:00:11]} 21... Rxb4 {[%clk 0:09:43]} 22. Qa2 {[%clk
0:59:48]} 22... Rxd4 {[%clk 0:07:35]} 23. Nhf5 {[%clk 0:56:17]} 23... Rb4 {[%clk
0:08:03]} 24. Nxd5 {[%clk 0:50:18]} 24... Bc4 {[%clk 0:06:59]} 25. Qxa5 {[%clk
0:48:39]} 25... Qxa5 {[%clk 0:07:06]} 26. Rxa5 {[%clk 0:49:01]} 26... Nxd5
{[%clk 0:07:03]} 27. Bxd5 {[%clk 0:48:30]} 27... Rxe2 {[%clk 0:06:30]} 28. Ne7+
{[%clk 0:39:12]} 28... Kf8 {[%clk 0:04:47]} 29. Rxe2 {[%clk 0:39:32]} 29... Bxe2
{[%clk 0:05:16]} 30. Nc6 {[%clk 0:39:42]} 30... Rb1+ {[%clk 0:05:37]} 31. Kg2
{[%clk 0:40:05]} 31... Bf1+ {[%clk 0:05:36]} 32. Kf3 {[%clk 0:40:18]} 32... g5
{[%clk 0:05:23]} 33. Ra7 {[%clk 0:39:35]} 33... Nc5 {[%clk 0:01:36]} 34. Rxf7+
{[%clk 0:24:39]} 34... Ke8 {[%clk 0:02:05]} 35. Rc7 {[%clk 0:24:06]} 35... Kf8
{[%clk 0:02:07]} 36. Ne5 {[%clk 0:19:48]} 36... Nb3 {[%clk 0:00:43]} 37. Rf7+
{[%clk 0:18:16]} 37... Ke8 {[%clk 0:01:12]} 38. Bc6+ {[%clk 0:18:31]} 38... Kd8
{[%clk 0:01:35]} 39. Rd7+ {[%clk 0:18:52]} 39... Kc8 {[%clk 0:01:55]} 40. Bb7+
{[%clk 0:49:11]} 40... Kb8 {[%clk 0:31:51]} 41. Nc6# {[%clk 0:49:36]} 1-0

[Variant "Standard"]
[Site "Europe Echecs"]